bitfinex/quotes_SOLUSD_20260213
["timestamp","ask_amount","ask_price","bid_price","bid_amount"]
[1770950511246,0.46892491,78.593,78.553,0.2]
[1770950511446,0.46892491,78.593,78.561,0.2]
[1770950511753,0.46892491,78.589,78.561,0.2]
[1770950512533,0.46892491,78.589,78.563,0.2]
[1770950513748,0.46892491,78.607,78.571,0.2]
[1770950513948,0.46892491,78.607,78.573,0.2]
[1770950514639,0.46892491,78.607,78.574,44.54399673]
[1770950514839,0.46892491,78.607,78.575,0.2]
[1770950516244,0.46892491,78.607,78.581,0.2]
[1770950517350,0.46892491,78.607,78.582,54.94]
[1770950517545,0.46892491,78.607,78.583,0.2]
[1770950517749,12.72097328,78.611,78.583,0.2]
[1770950517750,0.46892491,78.619,78.583,0.2]
[1770950519157,0.46892491,78.619,78.585,0.2]
[1770950519852,0.46892491,78.619,78.591,0.2]
[1770950520355,3.98857325,78.62,78.584,99.4983284]
[1770950520356,0.46892491,78.617,78.584,99.6983284]
[1770950520530,0.46892491,78.617,78.585,0.2]
[1770950521147,0.49315613,78.615,78.587,0.2]
[1770950524651,12.72038059,78.614,78.588,12.72458899]
[1770950524859,0.49315613,78.613,78.588,12.72458899]
[1770950526753,0.49315613,78.611,78.584,54.96]
[1770950526938,3.98857325,78.6,78.571,12.72724213]
[1770950527141,0.49315613,78.599,78.567,12.7279095]
[1770950530863,0.49315613,78.599,78.568,0.2]
[1770950532166,0.49315613,78.599,78.57,0.2]
[1770950532481,0.49315613,78.604,78.572,0.2]
[1770950533569,0.49315613,78.604,78.574,0.2]
[1770950536474,0.49315613,78.602,78.571,55.0]
[1770950536782,0.49315613,78.589,78.558,55.02]
[1770950536951,0.49315613,78.589,78.557,55.02]
[1770950538647,0.49315613,78.588,78.558,12.7294483]
[1770950543069,0.49315613,78.588,78.561,0.2]
[1770950544359,12.72475091,78.587,78.561,0.2]
[1770950544559,0.49315613,78.586,78.561,0.2]
[1770950545477,0.49315613,78.586,78.55,3.98857325]
[1770950545478,0.49315613,78.586,78.563,0.2]
[1770950545678,0.49315613,78.586,78.562,12.72880018]
[1770950550283,0.49315613,78.586,78.563,0.2]
[1770950551170,0.49315613,78.586,78.561,55.08]
[1770950551680,0.45167192,78.584,78.561,67.80881948]
[1770950553776,0.45167192,78.584,78.561,68.00881948]
[1770950554378,0.46837992,78.582,78.562,0.2]
[1770950556476,0.46837992,78.582,78.563,12.72863816]
[1770950560196,0.46837992,78.61,78.571,0.2]
[1770950560488,0.46837992,78.61,78.565,12.72831413]
[1770950560489,0.46837992,78.618,78.581,0.2]
[1770950560662,0.46837992,78.618,78.583,0.2]
[1770950561563,4.61729252,78.629,78.582,55.26]
[1770950561564,0.2,78.71,78.611,5.36086188]
[1770950561862,0.2,78.71,78.69,3.98857325]
[1770950562074,0.2,78.71,78.686,17.8]
[1770950562276,4.18857325,78.71,78.68,16.69819568]
[1770950562485,4.18857325,78.71,78.683,55.5]
[1770950563686,0.2,78.71,78.69,3.98857325]
[1770950563869,0.2,78.71,78.7,3.98857325]
[1770950564265,0.2,78.71,78.7,16.69504633]
[1770950564466,0.2,78.72,78.7,16.69504633]
[1770950564693,0.5,78.736,78.71,3.98857325]
[1770950564990,0.5,78.736,78.7,44.47267384]
[1770950564991,0.2,78.74,78.721,0.46587914]
[1770950565290,0.2,78.74,78.73,3.98857325]
[1770950565496,0.2,78.74,78.722,55.54]
[1770950566075,3.98857325,78.79,78.732,0.3]
[1770950566283,3.98857325,78.78,78.746,12.69897721]
[1770950566885,0.46837992,78.788,78.75,3.98857325]
[1770950567085,0.46837992,78.759,78.725,55.56]
[1770950567287,4.61729252,78.786,78.72,59.56857325]
[1770950567288,0.46837992,78.749,78.72,59.56857325]
[1770950567586,0.46837992,78.749,78.72,55.58]
[1770950568191,0.46837992,78.749,78.689,0.3]
[1770950568485,0.46837992,78.719,78.69,3.98857325]
[1770950568788,0.46837992,78.719,78.7,3.98857325]
[1770950568970,0.46837992,78.719,78.691,0.3]
[1770950570468,0.46837992,78.719,78.7,3.98857325]
[1770950570872,0.46837992,78.719,78.7,10.64649497]
[1770950571080,0.46837992,78.719,78.695,55.6]
[1770950572879,0.46837992,78.719,78.696,12.70712615]
[1770950573891,0.46837992,78.719,78.7,10.64689972]
[1770950574969,0.46837992,78.719,78.701,12.70631885]
[1770950575174,0.47473218,78.726,78.701,12.70631885]
[1770950575674,0.47473218,78.726,78.703,0.3]
[1770950575879,0.47473218,78.739,78.703,0.3]
[1770950576693,0.47473218,78.729,78.702,55.62]
[1770950577389,0.47473218,78.765,78.721,0.3]
[1770950577596,0.47473218,78.765,78.72,10.64689972]
[1770950577597,0.47473218,78.765,78.723,0.3]
[1770950577772,0.47473218,78.765,78.722,55.64]
[1770950577773,0.47473218,78.765,78.74,10.64689972]
[1770950577973,0.47473218,78.765,78.741,55.7]
[1770950578173,0.47473218,78.765,78.74,10.64689972]
[1770950578376,0.47473218,78.765,78.741,55.7]
[1770950578594,0.47473218,78.765,78.74,10.64689972]
[1770950578791,0.47473218,78.765,78.741,55.68]
[1770950579997,0.47473218,78.765,78.742,55.66]
[1770950580386,12.6961556,78.764,78.715,0.3]
[1770950580589,0.47453215,78.749,78.72,10.64689972]
[1770950580791,0.47453215,78.749,78.716,55.66]
[1770950581097,10.64689972,78.74,78.716,55.68]
[1770950581406,0.47453215,78.739,78.716,55.68]
[1770950581783,0.47453215,78.729,78.716,54.93129148]
[1770950581990,0.47453215,78.729,78.707,12.70535022]
[1770950582293,0.47453215,78.739,78.72,10.64689972]
[1770950582879,0.47453215,78.739,78.711,0.3]
[1770950583195,0.47453215,78.749,78.721,12.70309066]
[1770950583492,4.61729252,78.765,78.721,12.70309066]
[1770950583493,0.47453215,78.756,78.731,0.3]
[1770950583798,50.749863,78.818,78.73,10.64689972]
[1770950583799,0.47453215,78.808,78.756,0.3]
[1770950583979,0.47453215,78.808,78.78,10.94689972]
[1770950584179,0.47453215,78.808,78.746,4.61729252]
[1770950584180,0.47453215,78.808,78.771,0.3]
[1770950584381,0.47453215,78.808,78.78,10.64689972]
[1770950584600,10.64689972,78.81,78.78,10.64689972]
[1770950584601,0.47453215,78.818,78.79,10.64689972]
[1770950585096,0.47453215,78.809,78.78,18.48]
[1770950585298,0.47453215,78.809,78.78,10.64689972]
[1770950585879,0.47453215,78.809,78.79,10.64689972]
[1770950586690,0.47453215,78.837,78.801,0.3]
[1770950586895,0.47453215,78.837,78.81,10.64689972]
[1770950587197,10.84689972,78.85,78.78,10.64689972]
[1770950587198,0.2,78.85,78.833,0.48288637]
[1770950587396,12.67619916,78.888,78.841,0.48288637]
[1770950587578,12.67619916,78.888,78.85,10.64689972]
[1770950588180,12.67603848,78.889,78.851,0.48288637]
[1770950588710,12.67603848,78.889,78.85,10.64689972]
[1770950588894,12.67603848,78.889,78.832,44.39821391]
[1770950588895,10.64689972,78.86,78.827,12.68591018]
[1770950589093,0.22546785,78.859,78.824,56.24288637]
[1770950589285,0.22546785,78.848,78.811,0.48288637]
[1770950589683,0.22546785,78.848,78.813,0.48288637]
[1770950589886,0.22546785,78.848,78.821,0.48288637]
[1770950590089,0.22546785,78.861,78.821,0.48288637]
[1770950590293,0.22546785,78.861,78.823,0.48288637]
[1770950590682,0.22546785,78.861,78.798,50.76223615]
[1770950590683,0.22546785,78.859,78.803,0.48288637]
[1770950591021,0.22546785,78.829,78.8,10.64689972]
[1770950591509,0.22546785,78.858,78.82,10.64689972]
[1770950591884,0.22546785,78.858,78.821,0.48288637]
[1770950593702,10.64689972,78.85,78.821,13.16972791]
[1770950593885,0.22546785,78.849,78.821,13.16972791]
[1770950598708,0.22546785,78.858,78.822,0.48288637]
[1770950599113,39.54,78.878,78.821,12.68684154]
[1770950599114,0.22546785,78.885,78.851,0.48288637]
[1770950599308,0.22546785,78.884,78.852,12.6819865]
[1770950599512,10.64689972,78.88,78.852,12.6819865]
[1770950599806,0.22546785,78.879,78.852,12.6819865]
[1770950601306,0.22546785,78.879,78.824,4.61729252]
[1770950601307,0.22546785,78.859,78.818,0.48288637]
[1770950601892,0.22546785,78.877,78.83,10.64689972]
[1770950602118,0.22546785,78.877,78.841,0.48288637]
[1770950602896,0.22546785,78.877,78.843,0.48288637]
[1770950603113,0.22546785,78.886,78.843,0.48288637]
[1770950603616,12.67649068,78.887,78.842,100.23258262]
[1770950603617,0.22546785,78.896,78.851,0.48288637]
[1770950603802,0.22546785,78.907,78.87,10.64689972]
[1770950604000,0.22546785,78.907,78.871,0.48288637]
[1770950605518,0.22546785,78.907,78.87,10.64689972]
[1770950605519,0.22546785,78.906,78.873,0.48288637]
[1770950606420,0.2,78.92,78.891,0.48288637]
[1770950607401,0.2,78.92,78.892,44.36444759]
[1770950607612,0.22546785,78.943,78.911,0.48288637]
[1770950607814,10.84689972,78.95,78.892,44.36444759]
[1770950607815,0.2,78.95,78.921,0.48288637]
[1770950608117,0.2,78.95,78.931,0.48288637]
[1770950609296,0.2,78.95,78.922,0.48288637]
[1770950609509,0.22546785,78.949,78.922,0.48288637]
[1770950610121,0.22546785,78.949,78.923,12.67057765]
[1770950610318,0.22546785,78.949,78.907,31.68253074]
[1770950610319,0.22546785,78.939,78.902,13.15671393]
[1770950610918,44.33297866,78.948,78.902,13.15671393]
[1770950610919,12.66656533,78.948,78.911,0.47098751]
[1770950611125,0.22546785,78.947,78.911,0.47098751]
[1770950611628,0.22546785,78.939,78.903,0.47098751]
[1770950611803,0.22546785,78.939,78.905,0.47098751]
[1770950612204,0.22546785,78.938,78.905,0.47098751]
[1770950612924,12.66805167,78.939,78.905,0.47098751]
[1770950613117,12.66805167,78.939,78.91,10.64689972]
[1770950613321,12.66805167,78.939,78.904,12.67362871]
[1770950613322,0.22546785,78.929,78.891,0.49477959]
[1770950613526,0.22546785,78.919,78.873,0.49477959]
[1770950613825,0.22546785,78.919,78.881,0.49477959]
[1770950614208,0.22546785,78.919,78.883,0.49477959]
[1770950615219,0.22546785,78.918,78.883,0.49477959]
[1770950615418,0.22546785,78.918,78.882,12.67716335]
[1770950615419,0.22546785,78.966,78.891,0.49477959]
[1770950615616,0.22546785,78.949,78.911,0.49477959]
[1770950616221,0.22546785,78.929,78.887,0.49477959]
[1770950616534,0.22546785,78.919,78.883,55.82]
[1770950616826,0.22546785,78.919,78.885,0.49477959]
[1770950617428,0.22546785,78.919,78.884,44.3689468]
[1770950617429,0.22546785,78.919,78.884,12.67684194]
[1770950617623,10.64689972,78.91,78.884,12.67684194]
[1770950617936,0.22546785,78.91,78.884,12.67684194]
[1770950618119,0.22546785,78.919,78.885,0.49477959]
[1770950618735,10.64689972,78.92,78.88,12.67740705]
[1770950618736,0.22546785,78.917,78.88,12.67740705]
[1770950619353,10.64689972,78.9,78.866,0.49477959]
[1770950619627,0.22546785,78.909,78.871,0.49477959]
[1770950619821,0.22546785,78.909,78.866,44.37893559]
[1770950619822,0.22546785,78.909,78.88,10.64689972]
[1770950620410,0.22546785,78.909,78.879,0.49477959]
[1770950620616,12.67298626,78.908,78.871,12.67893141]
[1770950620822,0.22546785,78.907,78.871,12.67893141]
[1770950621217,0.22546785,78.907,78.871,13.173711]
[1770950622019,0.22546785,78.907,78.872,0.49477959]
[1770950622740,0.22546785,78.915,78.881,0.49477959]
[1770950623336,0.22546785,78.915,78.88,10.64689972]
[1770950623549,0.22546785,78.909,78.873,12.67860991]
[1770950623838,0.22546785,78.909,78.874,0.49477959]
[1770950625240,0.22546785,78.916,78.881,0.49477959]
[1770950626023,0.22546785,78.915,78.881,0.49477959]
[1770950626330,0.22546785,78.914,78.881,0.49477959]
[1770950627836,0.22546785,78.934,78.883,0.49477959]
[1770950629323,10.64689972,78.93,78.883,0.49477959]
[1770950629525,0.22546785,78.929,78.883,0.49477959]
[1770950629938,0.22546785,78.929,78.882,44.37007174]
[1770950629939,0.22546785,78.927,78.893,0.49477959]
[1770950630141,0.22546785,78.919,78.886,12.67642342]
[1770950630513,0.22546785,78.919,78.887,0.49477959]
[1770950631624,12.89684827,78.918,78.889,0.49477959]
[1770950631942,0.22546785,78.917,78.889,0.49477959]
[1770950632736,0.22546785,78.925,78.891,0.49477959]
[1770950634735,12.89347732,78.939,78.901,0.49477959]
[1770950634928,0.22546785,78.938,78.901,0.49477959]
[1770950635625,0.2,78.95,78.931,0.49477959]
[1770950636545,0.2,78.95,78.92,0.49477959]
[1770950636736,0.22546785,78.948,78.92,13.16583889]
[1770950637243,0.22546785,78.948,78.921,0.49477959]
[1770950637847,12.66672577,78.947,78.921,0.49477959]
[1770950638443,0.22546785,78.946,78.912,13.16711387]
[1770950638742,0.22546785,78.946,78.913,0.49477959]
[1770950639734,0.22546785,78.946,78.914,12.6720227]
[1770950640050,0.22546785,78.946,78.915,0.49477959]
[1770950640248,0.22546785,78.945,78.915,0.49477959]
[1770950640559,0.22546785,78.945,78.91,66.39325072]
[1770950640560,0.22546785,78.939,78.911,12.67250446]
[1770950640763,0.22546785,78.939,78.893,0.49217932]
[1770950641130,0.22546785,78.939,78.898,0.49217932]
[1770950641548,0.22546785,78.929,78.898,0.49217932]
[1770950642252,0.22546785,78.927,78.897,12.67466683]
[1770950642435,0.22546785,78.927,78.893,12.67532273]
[1770950642842,0.22546785,78.919,78.88,10.59325072]
[1770950643037,0.22546785,78.919,78.88,11.08543004]
[1770950643232,0.22546785,78.919,78.881,0.49217932]
[1770950643435,0.22546785,78.919,78.891,0.49217932]
[1770950643834,0.22546785,78.919,78.89,10.59325072]
[1770950644048,0.22546785,78.919,78.882,13.16924312]
[1770950644253,0.22546785,78.917,78.883,0.49217932]
[1770950645854,0.22546785,78.917,78.882,12.6770638]
[1770950646156,0.22546785,78.917,78.882,13.16924312]
[1770950646452,12.67170155,78.916,78.883,0.49217932]
[1770950646659,0.22546785,78.915,78.883,0.49217932]
[1770950650351,39.48,78.931,78.871,0.126789]
[1770950650352,0.22546785,78.909,78.872,0.49217932]
[1770950650556,0.22546785,78.909,78.874,0.49217932]
[1770950652662,0.22546785,78.907,78.876,0.49217932]
[1770950652867,12.67241202,78.912,78.881,0.49217932]
[1770950653062,0.22546785,78.924,78.891,0.49217932]
[1770950653958,0.22546785,78.939,78.901,0.49217932]
[1770950654143,0.22546785,78.939,78.911,0.49217932]
[1770950654348,0.22546785,78.929,78.897,55.8]
[1770950655067,0.22546785,78.927,78.897,55.8]
[1770950655357,0.22546785,78.927,78.895,0.49217932]
[1770950655560,12.66640489,78.949,78.911,0.49217932]
[1770950655752,0.22546785,78.948,78.911,0.49217932]
[1770950656366,4.61729252,78.966,78.896,55.8]
[1770950656367,0.22546785,78.973,78.931,0.49217932]
[1770950656555,0.22546785,78.969,78.94,11.08543004]
[1770950657600,0.22546785,78.968,78.94,11.08543004]
[1770950658475,12.66325562,78.969,78.942,0.49217932]
[1770950660373,12.66325562,78.969,78.934,55.78]
[1770950660374,0.22546785,78.959,78.934,55.78]
[1770950660669,0.22546785,78.959,78.922,0.49217932]
[1770950661257,0.22546785,78.939,78.901,0.49217932]
[1770950661454,0.22546785,78.962,78.931,0.49217932]
[1770950662364,12.66447993,78.961,78.933,0.49217932]
[1770950662667,0.22546785,78.962,78.933,0.49217932]
[1770950663865,10.79325072,78.97,78.932,12.66913292]
[1770950663866,12.86304748,78.97,78.941,0.49217932]
[1770950664176,0.22546785,78.969,78.941,0.49217932]
[1770950665387,12.6633573,78.968,78.941,0.49217932]
[1770950665852,12.88882515,78.968,78.941,0.49217932]
[1770950667570,0.22546785,78.967,78.941,0.49217932]
[1770950668072,0.22546785,78.967,78.94,10.59325072]
[1770950668255,0.22546785,78.967,78.933,0.49217932]
[1770950668256,0.22546785,78.967,78.934,12.66881191]
[1770950668457,0.22546785,78.967,78.934,13.16099123]
[1770950668658,0.22546785,78.967,78.935,0.49217932]
[1770950670659,0.22546785,78.967,78.94,10.59325072]
[1770950671061,0.22546785,78.965,78.94,10.59325072]
[1770950671261,0.22546785,78.965,78.937,0.45667278]
[1770950672884,0.22546785,78.965,78.938,12.66816995]
[1770950673180,0.22546785,78.965,78.939,0.45667278]
[1770950675262,0.22546785,78.963,78.94,10.59325072]
[1770950677078,0.22546785,78.963,78.939,0.45667278]
[1770950678082,0.22546785,78.963,78.94,12.66784899]
[1770950678279,0.22546785,78.963,78.939,0.45667278]
[1770950678483,0.22546785,78.961,78.933,0.49015256]
[1770950678665,0.22546785,78.961,78.934,0.49015256]
[1770950679068,0.2,78.97,78.941,0.49015256]
[1770950679277,12.66319695,78.969,78.942,0.49015256]
[1770950679885,0.22546785,78.968,78.931,55.76]
[1770950680074,0.22546785,78.959,78.922,0.49015256]
[1770950681595,0.22546785,78.949,78.922,0.49015256]
[1770950682692,0.22546785,78.949,78.924,0.49015256]
[1770950683692,12.66656533,78.948,78.924,0.49015256]
[1770950683869,12.66319695,78.969,78.931,0.5]
[1770950684067,12.66319695,78.969,78.94,3.95071836]
[1770950684278,12.66319695,78.969,78.941,0.5]
[1770950686996,44.32118932,78.969,78.932,55.7]
[1770950687288,3.95071836,78.95,78.929,12.66950692]
[1770950687482,3.95071836,78.95,78.916,0.5]
[1770950688297,12.66480071,78.959,78.921,0.5]
[1770950690281,12.66480071,78.959,78.923,0.5]
[1770950690480,12.66423966,78.963,78.923,0.5]
[1770950691367,12.66423966,78.963,78.93,3.95071836]
[1770950691570,4.15071836,78.97,78.93,3.95071836]
[1770950691571,12.6633573,78.968,78.931,0.5]
[1770950692384,12.6633573,78.968,78.933,0.5]
[1770950695134,3.95104426,78.96,78.933,0.5]
[1770950696278,3.95104426,78.96,78.923,12.67049513]
[1770950696588,3.95104426,78.96,78.924,0.5]
[1770950696980,44.3268025,78.959,78.924,0.5]
[1770950697183,12.66351767,78.967,78.924,0.5]
[1770950697383,12.66351767,78.967,78.92,59.65104426]
[1770950697384,4.15104426,78.97,78.931,0.5]
[1770950697589,0.2,79.0,78.951,0.5]
[1770950697791,0.2,79.0,78.971,0.5]
[1770950698090,4.15104426,79.0,78.961,0.5]
[1770950698282,0.2,79.0,78.971,0.5]
[1770950698982,3.95104426,78.99,78.971,0.5]
[1770950699683,3.95104426,78.99,78.95,3.95104426]
[1770950699684,3.95104426,78.98,78.957,0.5]
[1770950700086,3.95104426,78.97,78.955,55.76]
[1770950700287,44.3049191,78.998,78.904,0.5]
[1770950700288,7.90208852,78.96,78.904,0.5]
[1770950700488,3.95104426,78.94,78.906,0.5]
[1770950700898,10.59081989,78.94,78.906,0.5]
[1770950701087,10.59081989,78.93,78.906,0.5]
[1770950701306,12.66811663,78.939,78.906,0.5]
[1770950701603,10.59081989,78.92,78.9,19.84]
[1770950701783,10.59081989,78.92,78.897,0.5]
[1770950702392,10.59081989,78.94,78.901,0.5]
[1770950702588,4.61729252,78.976,78.921,0.5]
[1770950702794,10.59081989,78.97,78.921,0.5]
[1770950702991,10.59081989,78.97,78.923,0.5]
[1770950703298,50.7073705,79.04,78.922,55.8]
[1770950703299,12.65999063,78.989,78.953,0.5]
[1770950703614,12.65999063,78.989,78.947,56.3]
[1770950703615,10.59081989,78.97,78.947,56.3]
[1770950703785,10.59081989,78.97,78.942,12.66743582]
[1770950703987,10.59081989,78.96,78.939,55.84]
[1770950704287,10.59081989,78.96,78.932,0.5]
[1770950704485,10.59081989,78.97,78.932,0.5]
[1770950704823,10.59081989,78.96,78.932,0.5]
[1770950705031,10.59081989,78.94,78.924,55.86]
[1770950705183,10.59081989,78.94,78.915,0.5]
[1770950705589,12.66698695,78.946,78.917,0.5]
[1770950708495,12.66519459,78.957,78.92,10.59081989]
[1770950708695,12.66519459,78.957,78.921,0.5]
[1770950709097,12.66435726,78.962,78.921,0.5]
[1770950709302,10.59081989,78.96,78.922,55.84]
[1770950709499,10.59081989,78.96,78.923,0.5]
[1770950711312,12.66480071,78.959,78.924,12.67041711]
[1770950711610,12.66480071,78.959,78.925,0.5]
[1770950712196,10.59081989,78.95,78.925,0.5]
[1770950713020,10.59081989,78.94,78.922,55.84]
[1770950713222,10.59081989,78.95,78.922,55.84]
[1770950713401,12.66640489,78.949,78.922,55.84]
[1770950715315,10.59081989,78.94,78.911,0.5]
[1770950716427,12.66800947,78.939,78.911,0.5]
[1770950719724,12.66800947,78.939,78.907,55.86]
[1770950719919,12.66800947,78.939,78.908,0.5]
[1770950720309,10.59081989,78.93,78.901,0.5]
[1770950721314,10.59081989,78.93,78.903,0.5]
[1770950721527,12.66807359,78.939,78.903,0.5]
[1770950721729,12.66672577,78.947,78.911,0.5]
[1770950722128,10.59081989,78.95,78.911,0.5]
[1770950722315,12.66481091,78.959,78.911,0.5]
[1770950722522,12.66481091,78.959,78.921,0.5]
[1770950722729,12.66481091,78.959,78.923,0.5]
[1770950722938,31.65913034,78.967,78.931,0.5]
[1770950722939,12.6636749,78.967,78.931,0.5]
[1770950723322,12.66480071,78.959,78.931,0.5]
[1770950724135,12.66480071,78.959,78.933,0.5]
[1770950724333,12.66363675,78.967,78.933,0.5]
[1770950724737,4.61729252,78.986,78.932,12.66913292]
[1770950724738,12.66195562,78.977,78.941,0.5]
[1770950725143,10.59081989,78.97,78.941,0.5]
[1770950725825,10.59081989,78.97,78.943,0.5]
[1770950726022,39.6,78.986,78.93,10.59081989]
[1770950726023,10.59081989,78.96,78.93,0.5]
[1770950726330,10.59081989,78.97,78.932,0.5]
[1770950728038,12.66319695,78.969,78.934,0.5]
[1770950728742,12.66319695,78.969,78.933,12.66897241]
[1770950729419,12.66319695,78.969,78.933,13.16897241]
[1770950729914,12.66319695,78.969,78.934,0.5]
[1770950730237,12.66319695,78.969,78.935,12.66865142]
[1770950730627,12.66319695,78.969,78.936,0.5]
[1770950731225,12.66319695,78.969,78.938,0.5]
[1770950731428,52.28159358,78.979,78.941,0.5]
[1770950731721,10.59081989,78.99,78.951,0.5]
[1770950734033,10.59081989,78.98,78.951,0.5]
[1770950734839,44.30772346,78.993,78.951,0.5]
[1770950735038,3.94943819,78.98,78.951,0.5]
[1770950735240,3.94943819,78.99,78.951,0.5]
[1770950736241,3.94943819,78.99,78.953,0.5]
[1770950736745,3.94943819,78.98,78.953,0.5]
[1770950737241,12.66159358,78.979,78.953,0.5]
[1770950737442,3.94943819,78.97,78.947,55.86]
[1770950737825,3.94943819,78.97,78.947,68.52660516]
[1770950739946,3.94943819,78.97,78.947,69.02660516]
[1770950740943,12.66214947,78.976,78.948,0.5]
[1770950741748,3.94943819,78.97,78.948,0.5]
[1770950742151,3.94943819,78.98,78.95,0.5]
[1770950744246,4.61729252,78.996,78.947,55.86]
[1770950744247,12.65838808,78.999,78.952,0.5]
[1770950744450,0.2,79.0,78.961,0.5]
[1770950744647,0.2,79.0,78.971,0.5]
[1770950746646,0.2,79.0,78.973,0.5]
[1770950746849,0.1,79.01,78.974,0.48342286]
[1770950747354,3.94943819,78.99,78.951,55.78]
[1770950747535,3.94943819,78.99,78.952,0.48342286]
[1770950747942,3.94943819,78.99,78.947,12.66672577]
[1770950747943,3.94943819,78.99,78.954,0.48342286]
[1770950748654,12.65999063,78.989,78.956,0.48342286]
[1770950750154,12.86209011,78.989,78.956,0.48342286]
[1770950750945,0.20207536,78.988,78.958,0.48342286]
[1770950751456,16.60771878,79.0,78.958,0.48342286]
[1770950751656,0.20207536,78.999,78.958,0.48342286]
[1770950753342,31.74171345,79.01,78.957,44.32792532]
[1770950753343,3.94817105,78.99,78.96,0.48342286]
[1770950753743,0.20202796,78.997,78.96,0.48342286]
[1770950756339,0.20195888,78.979,78.955,0.48342286]
[1770950757556,3.94817105,78.99,78.955,0.48342286]
[1770950757753,16.60642072,79.0,78.955,0.48342286]
[1770950758447,0.20191414,78.999,78.957,0.48342286]
[1770950758842,0.20189215,78.989,78.957,0.48342286]
[1770950759264,0.20189215,78.979,78.957,0.48342286]
[1770950759963,0.20189215,78.979,78.953,55.96]
[1770950760172,0.20189215,78.979,78.954,12.66560275]
[1770950760653,0.20184894,78.977,78.953,55.96]
[1770950760845,0.2018277,78.969,78.945,12.66704667]
[1770950761360,0.2018277,78.979,78.946,0.4847016]
[1770950761562,0.2018277,78.984,78.948,0.4847016]
[1770950761759,0.2018277,78.979,78.948,0.4847016]
[1770950763243,0.20178595,78.977,78.948,12.66656533]
[1770950763766,0.20178595,78.977,78.947,55.98]
[1770950763767,0.20178595,78.969,78.947,55.98]
[1770950764265,0.20178595,78.969,78.936,56.0]
[1770950764463,0.20178595,78.969,78.906,4.61729252]
[1770950764464,3.94817105,78.96,78.916,31.67898746]
[1770950764664,3.94817105,78.95,78.918,0.5008831]
[1770950765264,3.94817105,78.95,78.919,12.67121985]
[1770950765462,3.94817105,78.94,78.915,12.67177473]
[1770950767680,3.94817105,78.96,78.916,0.5008831]
[1770950767847,39.54,78.979,78.915,12.67177473]
[1770950767848,3.94817105,78.97,78.921,0.5008831]
[1770950768242,3.94817105,78.97,78.92,3.94817105]
[1770950768243,3.94817105,78.97,78.923,0.5008831]
[1770950768462,3.94817105,78.98,78.931,0.5008831]
[1770950768661,3.94817105,78.97,78.933,0.5008831]
[1770950768860,10.58247792,78.97,78.935,0.5008831]
[1770950769465,4.61729252,78.985,78.934,56.0]
[1770950769466,10.58247792,78.96,78.934,56.0]
[1770950769851,10.58247792,78.95,78.934,56.0]
[1770950770058,10.58247792,78.95,78.919,12.67114772]
[1770950770454,44.32118932,78.969,78.911,56.0]
[1770950770455,10.58247792,78.94,78.911,56.0]
[1770950770761,10.58247792,78.95,78.913,0.5008831]
[1770950771166,10.58247792,78.94,78.913,0.5008831]
[1770950771751,10.58247792,78.95,78.913,0.5008831]
[1770950771950,4.61729252,78.947,78.913,0.5008831]
[1770950773068,10.58247792,78.94,78.913,0.5008831]
[1770950773950,12.66800947,78.939,78.911,56.0]
[1770950774771,10.58247792,78.93,78.911,56.0]
[1770950774950,10.58247792,78.93,78.899,13.17531165]
[1770950775366,10.58247792,78.93,78.88,10.78247792]
[1770950775367,10.58247792,78.92,78.888,12.67604258]
[1770950775669,10.58247792,78.92,78.889,0.5008831]
[1770950776258,12.67121985,78.919,78.889,0.5008831]
[1770950776971,4.61729252,78.947,78.901,0.5008831]
[1770950777172,10.58247792,78.94,78.901,0.5008831]
[1770950777974,10.58247792,78.93,78.901,0.5008831]
[1770950778276,10.58247792,78.93,78.893,0.5008831]
[1770950778774,12.66961446,78.929,78.895,0.5008831]
[1770950780274,12.66961446,78.929,78.897,0.5008831]
[1770950782692,12.66961446,78.929,78.898,13.17547561]
[1770950782977,12.66961446,78.929,78.899,0.5008831]
[1770950786485,12.66961446,78.929,78.9,12.67427122]
[1770950786681,12.66961446,78.929,78.9,13.17515432]
[1770950786887,12.66961446,78.929,78.901,0.5008831]
[1770950787280,10.58247792,78.94,78.903,0.5008831]
[1770950788172,10.58247792,78.96,78.911,0.5008831]
[1770950788567,10.58247792,78.96,78.921,0.5008831]
[1770950788879,3.95163547,78.96,78.921,0.5008831]
[1770950789382,12.66480071,78.959,78.923,0.5008831]
[1770950791279,12.66480071,78.959,78.924,12.67041711]
[1770950791461,12.66480071,78.959,78.925,0.5008831]